fUSD/lending_fUSD_20250628
["ID","MTS","AMOUNT","RATE_DAILY","PERIOD"]
[368374203,1751149833537,-500.0,0.00028282,2]
[368374204,1751149833547,-500.0,0.00028282,2]
[368374205,1751149833556,-500.0,0.00028282,2]
[368374206,1751149833566,-500.0,0.00028282,2]
[368374207,1751149833575,-500.0,0.00028282,2]
[368374208,1751149833585,-500.0,0.00028282,2]
[368374209,1751149833595,-500.0,0.00028282,2]
[368374210,1751149833604,-300.0,0.00028282,2]
[368374211,1751149833614,-300.0,0.00028282,2]
[368374212,1751149833624,-300.0,0.00028282,2]
[368374213,1751149833634,-300.0,0.00028282,2]
[368374214,1751149833644,-300.0,0.00028282,2]
[368374215,1751149833654,-500.0,0.00028282,2]
[368374216,1751149833663,-500.0,0.00028282,2]
[368374217,1751149833672,-500.0,0.00028282,2]
[368374218,1751149833682,-500.0,0.00028282,2]
[368374219,1751149833691,-500.0,0.00028282,2]
[368374220,1751149833701,-150.0,0.00028286,2]
[368374221,1751149833711,-234.0,0.00028293,2]
[368374222,1751149833721,-250.0,0.00028299,2]
[368374223,1751149833730,-9485.49,0.00028299,2]
[368374224,1751149833740,-7168.409754,0.0002832,2]
[368374225,1751149833749,-1000.0,0.00028336,2]
[368374226,1751149833759,-248.31,0.00028364,2]
[368374227,1751149833769,-2345.14,0.00028365,2]
[368374228,1751149833778,-287.55,0.00028366,2]
[368374229,1751149833788,-7433.6409149,0.00028375,2]
[368374230,1751149833797,-1000.0,0.00028383,2]
[368374231,1751149833807,-150.0,0.00028386,2]
[368374232,1751149833817,-300.0,0.00028392,2]
[368374233,1751149833826,-174.05,0.00028413,2]
[368374234,1751149833836,-250.0,0.00028417,2]
[368374235,1751149833846,-417.0,0.00028421,2]
[368374236,1751149833855,-150.0,0.00028427,2]
[368374237,1751149833865,-1492.15928195,0.0002843,2]
[368374238,1751149833875,-166.56,0.00028478,2]
[368374239,1751149833885,-1000.0,0.00028488,2]
[368374240,1751149833894,-835.41973025,0.00028524,2]
[368374241,1751149833907,-1366.02828626,0.00028527,2]
[368374242,1751149833916,-150.0,0.00028602,2]
[368374243,1751149833926,-1000.0,0.0002865,2]
[368374244,1751149833936,-299.140004,0.00028654,8]
[368374245,1751149833946,-390.12778873,0.00028664,2]
[368374246,1751149833956,-150.0,0.00028665,2]
[368374247,1751149833966,-150.0,0.00028794,2]
[368374248,1751149833976,-701.0,0.00028802,2]
[368374249,1751149833985,-908.0,0.00028879,2]
[368374250,1751149833995,-260.89185605,0.000289,20]
[368374251,1751149834005,-260.89185584,0.000289,20]
[368374252,1751149834015,-260.89185584,0.000289,20]
[368374253,1751149834025,-260.89185584,0.000289,20]
[368374254,1751149834034,-260.89185584,0.000289,20]
[368374255,1751149834043,-34.92537055,0.00028927,2]
[368374256,1751149834077,-199.07462945,0.00028927,2]
[368374257,1751149834086,-229.0,0.00028934,2]
[368374258,1751149834095,-1000.0,0.00028973,2]
[368374259,1751149834105,-21305.0,0.00029,5]
[368374260,1751149834115,-9999.0,0.00029,2]
[368374261,1751149834125,-234.0,0.00029054,2]
[368374262,1751149834135,-4694.04575622,0.0002907,2]
[368374263,1751149834144,-2929.6483,0.0002907,2]
[368374264,1751149834157,-150.0,0.00029073,2]
[368374265,1751149834167,-150.0,0.00029098,2]
[368374266,1751149834177,-1757.0,0.000291,2]
[368374267,1751149834187,-260.89185584,0.00029107,20]
[368374268,1751149834196,-197.12921999,0.00029108,2]
[368374269,1751149834206,-155.79,0.0002911,2]
[368374270,1751149834216,-13829.15252509,0.0002917,2]
[368374271,1751149834228,-298.99385051,0.0002917,2]
[368374272,1751149834238,-349.24692659,0.0002917,15]
[368374273,1751149834248,-2086.6688,0.0002917,2]
[368374274,1751149834258,-614.2047,0.0002917,2]
[368374275,1751149834268,-489.7,0.0002919,2]
[368374276,1751149834278,-9999.0,0.000292,2]
[368374277,1751149834287,-9999.0,0.000292,2]
[368374278,1751149834297,-9999.0,0.000292,2]
[368374279,1751149834307,-4694.04575616,0.00029208,2]
[368374280,1751149834316,-489.7,0.0002925,2]
[368374281,1751149834327,-18292.64328003,0.00029252,7]
[368374282,1751149834438,-2791.42175,0.00029252,7]
[368374286,1751149838088,-150.0,0.00027329,2]
[368374287,1751149838098,-150.0,0.00027493,2]
[368374288,1751149838107,-150.0,0.0002761,2]
[368374289,1751149838119,-150.0,0.00027776,2]
[368374290,1751149838129,-150.0,0.00027789,2]
[368374291,1751149838138,-150.0,0.00028079,2]
[368374292,1751149838148,-150.0,0.00028117,2]
[368374293,1751149838161,-150.0,0.00028151,2]
[368374294,1751149838173,-150.0,0.00028372,2]
[368374295,1751149838183,-150.0,0.00028383,2]
[368374296,1751149838193,-150.0,0.00028512,2]
[368374297,1751149838202,-150.0,0.00029072,2]
[368374298,1751149838213,-68.625981,0.00029251,2]
[368374299,1751149838245,-201.03912935,0.00029251,2]
[368374300,1751149838256,-575.40037335,0.00029251,2]
[368374301,1751149838265,-379.29447658,0.00029251,2]
[368374302,1751149838274,-521.58318094,0.00029251,2]
[368374303,1751149838287,-521.58318094,0.00029251,2]
[368374304,1751149838301,-521.58318094,0.00029251,2]
[368374305,1751149838311,-521.58318094,0.00029251,2]
[368374306,1751149838321,-521.58318094,0.00029251,2]
[368374307,1751149838331,-521.58318094,0.00029251,2]
[368374308,1751149838340,-521.58318094,0.00029251,2]
[368374309,1751149838352,-521.58318094,0.00029251,2]
[368374310,1751149838361,-521.58318094,0.00029251,2]
[368374311,1751149838371,-521.58318094,0.00029251,2]
[368374312,1751149838380,-521.58318094,0.00029251,2]
[368374313,1751149838390,-521.58318094,0.00029251,2]
[368374314,1751149838401,-562882.8780764,0.00029252,7]
[368374315,1751149838433,-8636142.3141486,0.00029252,7]
[368374316,1751149838445,-227683.90840835,0.00029252,7]
[368374410,1751149840676,-12779.0820085,0.00029252,7]
[368374413,1751149840728,-1000.94143608,0.00029252,7]
[368374416,1751149840750,-15296.40242209,0.00029252,7]
[368374418,1751149840761,-499.18302992,0.00029252,7]
[368374426,1751149840833,-271.13518108,0.00029252,7]
[368374428,1751149840844,-414.65309128,0.00029252,7]
[368374446,1751149843246,-500.0,0.00029251,2]
[368374447,1751149843255,-271.01012076,0.00029251,2]
[368374448,1751149843265,-521.58318094,0.00029251,2]
[368374449,1751149843275,-2343320.53373139,0.00029252,7]
[368374462,1751149843796,-2401.5903362,0.00029252,7]
[368374463,1751149843807,-28136.86313375,0.00029252,7]
[368374464,1751149843822,-5265.23886629,0.00029252,7]
[368374465,1751149843834,-3010.97319535,0.00029252,7]
[368374466,1751149843846,-870.7,0.00029252,7]
[368374467,1751149843926,-303.999947,0.00029252,7]
[368374468,1751149843938,-1178.7209934,0.00029252,7]
[368374469,1751149843960,-2514.37088174,0.00029252,7]
[368374470,1751149846415,-300.0,0.00029252,2]
[368374471,1751149846424,-464561.01461262,0.00029252,7]
[368374479,1751150159553,156.33,0.00013699,2]
[368374482,1751150855254,150.0,0.000201,2]
[368374483,1751150909407,332.0,0.0002739,120]
[368374484,1751150912618,338.0,0.0002739,120]
[368374485,1751150978578,892.0,0.0002739,120]
[368374508,1751151031918,-172.69,0.00022036,2]
[368374510,1751151031928,-176.14,0.00024957,2]
[368374512,1751151031937,-3171.0,0.00025065,2]
[368374514,1751151031946,-205.0,0.00025684,2]
[368374516,1751151031956,-2609.14234374,0.00025804,2]
[368374518,1751151031965,-1200.0,0.00025831,2]
[368374520,1751151031974,-1534.0,0.00025832,2]
[368374522,1751151031982,-174.0,0.00026147,2]
[368374524,1751151031991,-300.0,0.00026188,2]
[368374526,1751151032000,-300.0,0.00026189,2]
[368374527,1751151032009,-1534.0,0.00026192,7]
[368374529,1751151032018,-1000.0,0.00027271,2]
[368374531,1751151032028,-174.0,0.00027389,7]
[368374533,1751151032036,-9600.85,0.00027415,2]
[368374535,1751151032045,-971.83,0.00027453,2]
[368374537,1751151032054,-1328.51,0.00027484,2]
[368374539,1751151032063,-1000.0,0.00027575,2]
[368374540,1751151032072,-151.0,0.00027641,2]
[368374542,1751151032081,-9124.82,0.00027658,2]
[368374544,1751151032090,-2318.27,0.00027684,2]
[368374546,1751151032099,-188.0,0.00027696,2]
[368374548,1751151032108,-302.79,0.00027697,2]
[368374550,1751151032117,-1000.0,0.00027697,2]
[368374552,1751151032126,-666.0,0.00027703,2]
[368374554,1751151032136,-1000.0,0.00027872,2]
[368374556,1751151032145,-150.0,0.00027886,2]
[368374558,1751151032155,-957.09309303,0.000279,2]
[368374560,1751151032165,-1877.0,0.00027902,2]
[368374562,1751151032174,-402.68,0.00027918,2]
[368374564,1751151032183,-150.0,0.00027952,2]
[368374566,1751151032192,-1171.0,0.00027957,2]
[368374568,1751151032201,-555.0,0.00027957,2]
[368374570,1751151032211,-184.68,0.00028054,120]
[368374572,1751151032219,-150.0,0.00028081,2]
[368374574,1751151032230,-799.17,0.00028082,2]
[368374576,1751151032239,-799.17,0.00028082,2]
[368374578,1751151032248,-799.17,0.00028082,2]
[368374580,1751151032260,-799.17,0.00028082,2]
[368374582,1751151032269,-835.41973025,0.00028084,2]
[368374584,1751151032278,-1680.0,0.00028085,2]
[368374586,1751151032287,-300.0,0.00028093,2]
[368374588,1751151032296,-207.4,0.00028093,2]
[368374590,1751151032305,-500.0,0.00028093,2]
[368374592,1751151032314,-567.39868848,0.00028093,2]
[368374595,1751151032329,-101.25316909,0.00028093,2]
[368374597,1751151032338,-500.0,0.00028093,2]
[368374599,1751151032347,-500.0,0.00028093,2]
[368374601,1751151032357,-500.0,0.00028093,2]
[368374603,1751151032366,-500.0,0.00028093,2]
[368374605,1751151032375,-500.0,0.00028093,2]
[368374607,1751151032384,-500.0,0.00028093,2]
[368374609,1751151032393,-500.0,0.00028093,2]
[368374611,1751151032402,-500.0,0.00028093,2]
[368374613,1751151032411,-500.0,0.00028093,2]
[368374615,1751151032420,-500.0,0.00028093,2]
[368374617,1751151032430,-500.0,0.00028093,2]
[368374619,1751151032439,-500.0,0.00028093,2]
[368374621,1751151032447,-500.0,0.00028093,2]
[368374623,1751151032457,-500.0,0.00028093,2]
[368374625,1751151032466,-500.0,0.00028093,2]
[368374627,1751151032475,-500.0,0.00028093,2]
[368374629,1751151032484,-500.0,0.00028093,2]
[368374631,1751151032493,-500.0,0.00028093,2]
[368374633,1751151032503,-500.0,0.00028093,2]
[368374635,1751151032512,-500.0,0.00028093,2]
[368374637,1751151032521,-500.0,0.00028093,2]
[368374639,1751151032530,-309.0,0.00028093,2]
[368374641,1751151032539,-300.0,0.00028093,2]
[368374643,1751151032548,-300.0,0.00028093,2]
[368374645,1751151032557,-325.23280408,0.00028093,2]
[368374647,1751151032567,-205.65,0.00028101,2]
[368374649,1751151032576,-150.0,0.00028208,2]
[368374651,1751151032585,-300.0,0.00028232,120]
[368374653,1751151032594,-250.0,0.00028232,2]
[368374654,1751151032603,-500.0,0.00028242,2]
[368374656,1751151032612,-150.0,0.00028242,2]
[368374658,1751151032622,-500.0,0.00028242,2]
[368374661,1751151032633,-150.0,0.00028242,2]
[368374662,1751151032643,-500.0,0.00028242,2]
[368374665,1751151032652,-150.68712096,0.00028242,2]
[368374667,1751151032663,-500.0,0.00028242,2]
[368374668,1751151032675,-500.0,0.00028242,2]
[368374670,1751151032685,-500.0,0.00028242,2]
[368374673,1751151032695,-500.0,0.00028242,2]
[368374675,1751151032704,-150.0,0.00028242,2]
[368374677,1751151032713,-500.0,0.00028242,2]
[368374678,1751151032722,-500.0,0.00028242,2]
[368374680,1751151032732,-150.0,0.00028242,2]
[368374682,1751151032741,-500.0,0.00028242,2]
[368374684,1751151032750,-150.0,0.00028242,2]
[368374686,1751151032760,-500.0,0.00028242,2]
[368374688,1751151032768,-571.0,0.00028242,2]
[368374690,1751151032778,-150.0,0.00028242,2]
[368374692,1751151032788,-151.27880672,0.00028242,2]
[368374694,1751151032797,-500.0,0.00028242,2]
[368374696,1751151032806,-150.0,0.00028242,2]
[368374698,1751151032815,-500.0,0.00028242,2]
[368374700,1751151032824,-150.0,0.00028242,2]
[368374702,1751151032833,-500.0,0.00028242,2]
[368374704,1751151032843,-687.0,0.00028242,2]
[368374706,1751151032853,-500.0,0.00028242,2]
[368374708,1751151032862,-500.0,0.00028242,2]
[368374710,1751151032871,-500.0,0.00028242,2]
[368374712,1751151032880,-150.0,0.00028242,2]
[368374714,1751151032889,-500.0,0.00028242,2]
[368374716,1751151032900,-6575.79,0.00028259,2]
[368374718,1751151032909,-250.0,0.00028322,2]
[368374720,1751151032918,-297.0,0.00028331,2]
[368374722,1751151032927,-150.0,0.00028341,2]
[368374724,1751151032936,-166.25,0.00028342,2]
[368374726,1751151032946,-1000.0,0.00028369,2]
[368374728,1751151032955,-300.0,0.00028399,120]
[368374730,1751151032964,-150.0,0.00028408,2]
[368374732,1751151032974,-297.0,0.00028435,7]
[368374734,1751151032983,-150.0,0.00028454,2]
[368374736,1751151032992,-150.0,0.00028493,2]
[368374738,1751151033001,-500.0,0.00028516,2]
[368374740,1751151033011,-150.0,0.00028516,2]
[368374742,1751151033021,-500.0,0.00028516,2]
[368374744,1751151033030,-500.0,0.00028516,2]
[368374746,1751151033040,-500.0,0.00028516,2]
[368374747,1751151033049,-500.0,0.00028516,2]
[368374749,1751151033058,-500.0,0.00028516,2]
[368374751,1751151033067,-500.0,0.00028516,2]
[368374753,1751151033078,-150.0,0.00028516,2]
[368374755,1751151033087,-500.0,0.00028516,2]
[368374757,1751151033096,-500.0,0.00028516,2]
[368374759,1751151033106,-150.0,0.00028516,2]
[368374761,1751151033115,-500.0,0.00028516,2]
[368374763,1751151033125,-150.40909417,0.00028516,2]
[368374765,1751151033135,-500.0,0.00028516,2]
[368374767,1751151033144,-571.0,0.00028516,2]
[368374770,1751151033154,-150.0,0.00028516,2]
[368374771,1751151033163,-600.0,0.00028516,2]
[368374773,1751151033173,-150.0,0.00028516,2]
[368374775,1751151033183,-595.56179781,0.00028516,2]
[368374777,1751151033193,-150.0,0.00028516,2]
[368374779,1751151033203,-500.89647196,0.00028516,2]
[368374782,1751151033213,-687.0,0.00028516,2]
[368374784,1751151033222,-500.0,0.00028516,2]
[368374786,1751151033231,-500.0,0.00028516,2]
[368374788,1751151033241,-500.0,0.00028516,2]
[368374789,1751151033251,-150.0,0.00028516,2]
[368374791,1751151033261,-500.0,0.00028516,2]
[368374794,1751151033270,-224.355003,0.00028568,8]
[368374796,1751151033284,-150.0,0.00028585,2]
[368374798,1751151033293,-150.0,0.00028594,2]
[368374800,1751151033303,-1000.0,0.000286,2]
[368374802,1751151033312,-150.0,0.00028601,2]
[368374804,1751151033323,-799.17,0.0002863,2]
[368374806,1751151033332,-575.3,0.0002863,2]
[368374808,1751151033342,-799.17,0.0002863,2]
[368374810,1751151033352,-799.17,0.0002863,2]
[368374812,1751151033362,-799.17,0.0002863,2]
[368374814,1751151033372,-288.11,0.0002863,2]
[368374816,1751151033383,-150.0,0.00028651,2]
[368374818,1751151033393,-150.0,0.00028764,2]
[368374820,1751151033402,-500.0,0.0002879,2]
[368374822,1751151033412,-150.0,0.0002879,2]
[368374824,1751151033422,-200.0,0.0002879,2]
[368374826,1751151033432,-500.0,0.0002879,2]
[368374828,1751151033441,-500.0,0.0002879,2]
[368374830,1751151033451,-500.0,0.0002879,2]
[368374832,1751151033461,-458.93651516,0.0002879,2]
[368374834,1751151033471,-500.0,0.0002879,2]
[368374836,1751151033481,-150.0,0.0002879,2]
[368374838,1751151033490,-500.0,0.0002879,2]
[368374840,1751151033501,-500.0,0.0002879,2]
[368374842,1751151033511,-185.40507398,0.0002879,2]
[368374844,1751151033520,-500.0,0.0002879,2]
[368374846,1751151033531,-500.0,0.0002879,2]
[368374848,1751151033540,-571.0,0.0002879,2]
[368374850,1751151033550,-150.0,0.0002879,2]
[368374852,1751151033560,-150.0,0.0002879,2]
[368374854,1751151033570,-687.0,0.0002879,2]
[368374856,1751151033580,-500.0,0.0002879,2]
[368374858,1751151033590,-500.0,0.0002879,2]
[368374860,1751151033599,-500.0,0.0002879,2]
[368374862,1751151033609,-150.0,0.0002879,2]
[368374864,1751151033619,-500.0,0.0002879,2]
[368374866,1751151033629,-215.38940105,0.000288,19]
[368374868,1751151033639,-215.38940087,0.000288,19]
[368374871,1751151033649,-215.38940087,0.000288,19]
[368374873,1751151033658,-215.38940087,0.000288,19]
[368374874,1751151033671,-215.38940087,0.000288,19]
[368374877,1751151033681,-215.38940087,0.000288,19]
[368374879,1751151033691,-215.38940087,0.000288,19]
[368374880,1751151033701,-150.0,0.00028828,2]
[368374882,1751151033711,-48.49787997,0.00028831,19]
[368374885,1751151033724,-166.8915209,0.00028831,19]
[368374887,1751151033734,-174.0,0.00028835,7]
[368374889,1751151033743,-150.0,0.00028851,2]
[368374891,1751151033753,-228.5143,0.000289,2]
[368374893,1751151033763,-150.0,0.00028972,2]
[368374895,1751151033772,-980.07855058,0.00029,7]
[368374897,1751151033784,-282.7525456,0.00029,7]
[368374899,1751151033800,-35986.67442529,0.00029,7]
[368374901,1751151033810,-835.41973025,0.00029,7]
[368374903,1751151033820,-150.0,0.00029006,2]
[368374905,1751151033830,-4722.16,0.00029009,2]
[368374907,1751151033839,-297.0,0.00029026,7]
[368374909,1751151033848,-500.0,0.00029064,2]
[368374911,1751151033858,-250.0,0.00029064,2]
[368374913,1751151033868,-500.0,0.00029064,2]
[368374915,1751151033878,-500.0,0.00029064,2]
[368374917,1751151033888,-480.7817322,0.00029064,2]
[368374920,1751151033898,-500.0,0.00029064,2]
[368374921,1751151033907,-299.83452615,0.00029064,2]
[368374923,1751151033917,-500.0,0.00029064,2]
[368374925,1751151033926,-472.8991349,0.00029064,2]
[368374927,1751151033936,-500.0,0.00029064,2]
[368374929,1751151033945,-500.0,0.00029064,2]
[368374931,1751151033954,-571.0,0.00029064,2]
[368374933,1751151033965,-150.78918594,0.00029064,2]
[368374935,1751151033974,-290.54437217,0.00029064,2]
[368374937,1751151033984,-687.0,0.00029064,2]
[368374939,1751151033995,-500.0,0.00029064,2]
[368374941,1751151034005,-350.0,0.00029064,2]
[368374944,1751151034015,-500.0,0.00029064,2]
[368374946,1751151034025,-150.0,0.00029064,2]
[368374948,1751151034036,-500.0,0.00029064,2]
[368374950,1751151034046,-150.0,0.00029091,2]
[368374952,1751151034057,-942.41676759,0.00029103,2]
[368374954,1751151034066,-1000.0,0.00029104,2]
[368374956,1751151034076,-215.38940087,0.00029107,20]
[368374958,1751151034086,-842.4317,0.00029133,2]
[368374960,1751151034095,-813.0722,0.00029133,2]
[368374962,1751151034105,-8836.90291009,0.00029136,2]
[368374964,1751151034115,-261.61961924,0.00029139,2]
[368374966,1751151034124,-150.0,0.00029139,2]
[368374968,1751151034133,-150.0,0.00029145,2]
[368374970,1751151034143,-12918.87361725,0.00029149,2]
[368374972,1751151034153,-150.0,0.00029154,2]
[368374974,1751151034163,-500.0,0.0002917,2]
[368374976,1751151034172,-2378.5451,0.0002917,2]
[368374978,1751151034182,-1000.0,0.0002917,2]
[368374980,1751151034192,-791.43,0.00029213,2]
[368374982,1751151034202,-150.0,0.00029214,2]
[368374984,1751151034211,-22254.9170073,0.00029223,2]
[368374986,1751151034221,-791.43,0.00029223,2]
[368374988,1751151034231,-791.43,0.00029223,2]
[368374990,1751151034241,-791.43,0.00029223,2]
[368374992,1751151034250,-791.43,0.00029229,2]
[368374994,1751151034259,-330.27051452,0.00029233,15]
[368374996,1751151034269,-65404.26868612,0.00029233,2]
[368375001,1751151034309,-373.26336855,0.00029233,2]
[368375004,1751151034322,-1614.65424976,0.00029233,2]
[368375006,1751151034334,-543.17006256,0.00029233,2]
[368375008,1751151034345,-4317.39231469,0.00029233,2]
[368375011,1751151034360,-508.90805373,0.00029233,2]
[368375013,1751151034372,-1072.56398073,0.00029233,2]
[368375015,1751151034384,-8487.1150338,0.00029233,2]
[368375017,1751151034395,-18269.39070933,0.00029233,2]
[368375019,1751151034407,-1003.0,0.00029233,2]
[368375022,1751151034418,-1411.17643533,0.00029233,2]
[368375024,1751151034429,-600.0,0.00029233,2]
[368375026,1751151034440,-9294.9315528,0.00029233,2]
[368375090,1751151037391,-500.0,0.00028242,2]
[368375091,1751151037401,-656.0,0.00028242,2]
[368375092,1751151037410,-150.0,0.00028255,2]
[368375093,1751151037421,-500.0,0.00028516,2]
[368375094,1751151037431,-331.6,0.00028516,2]
[368375095,1751151037443,-324.4,0.00028516,2]
[368375096,1751151037453,-150.0,0.00028562,2]
[368375097,1751151037463,-150.0,0.00028591,2]
[368375098,1751151037472,-500.0,0.0002879,2]
[368375099,1751151037481,-150.0,0.00028956,2]
[368375100,1751151037490,-150.0,0.00029027,2]
[368375101,1751151037500,-500.0,0.00029064,2]
[368375102,1751151037509,-150.0,0.00029168,2]
[368375103,1751151037519,-150.0,0.00029179,2]
[368375104,1751151037528,-195.46900619,0.00029223,2]
[368375105,1751151037540,-1428.70099381,0.00029223,2]
[368375106,1751151037549,-2099.81937369,0.00029233,2]
[368375107,1751151037562,-320.88,0.00029233,2]
[368375108,1751151037577,-2427.19807807,0.00029233,2]
[368375109,1751151037588,-3412.49,0.00029233,2]
[368375110,1751151037599,-67208.45930084,0.00029233,2]
[368375111,1751151037610,-12.82942878,0.00029239,2]
[368375112,1751151037637,-11114.62907482,0.00029239,2]
[368375113,1751151037646,-11132.2345814,0.00029249,2]
[368375114,1751151037655,-974.1613238,0.00029249,2]
[368375115,1751151037665,-447.98245433,0.0002925,7]
[368375116,1751151037676,-200.0,0.00029252,2]
[368375117,1751151037686,-200.0,0.00029252,2]
[368375118,1751151037695,-200.0,0.00029252,2]
[368375119,1751151037704,-2441.37358,0.00029252,2]
[368375120,1751151037714,-300.0,0.00029252,2]
[368375121,1751151037723,-500.0,0.00029253,2]
[368375123,1751151037732,-223.4708251,0.00029253,2]
[368375125,1751151037742,-150.0,0.00029253,2]
[368375127,1751151037751,-500.0,0.00029253,2]
[368375129,1751151037760,-500.0,0.00029253,2]
[368375131,1751151037770,-500.0,0.00029253,2]
[368375132,1751151037779,-150.0,0.00029253,2]
[368375135,1751151037790,-500.0,0.00029253,2]
[368375137,1751151037799,-169.47407932,0.00029254,2]
[368375139,1751151037808,-4166.39408123,0.00029256,2]
[368375141,1751151037825,-2142.04779041,0.00029256,2]
[368375144,1751151037847,-537.13002854,0.0002879,2]
[368375147,1751151037859,-118.86997146,0.0002879,2]
[368375160,1751151037970,-3170.44448859,0.00029256,2]
[368375352,1751151039844,-656.0,0.00029064,2]
[368375354,1751151039854,-753.41316507,0.00029256,2]
[368375359,1751151039890,-328.87390627,0.00029256,2]
[368375362,1751151039913,-566.28507203,0.00029256,2]
[368375365,1751151039923,-324.58477265,0.0002926,2]
[368375367,1751151039933,-499.92521643,0.00029262,2]
[368375369,1751151039942,-150.0,0.00029265,2]
[368375370,1751151039952,-8836.90291008,0.00029266,2]
[368375371,1751151039962,-1072.86784444,0.00029269,15]
[368375372,1751151039971,-1065.9957167,0.00029269,15]
[368375373,1751151039980,-12918.87361722,0.00029278,2]
[368375374,1751151039990,-150.0,0.00029284,2]
[368375375,1751151040000,-150.0,0.0002929,2]
[368375376,1751151040010,-169.47407931,0.00029299,2]
[368375377,1751151040020,-1624.17,0.00029313,2]
[368375378,1751151040030,-309.31,0.00029315,2]
[368375379,1751151040040,-150.0,0.00029315,2]
[368375380,1751151040050,-355.35,0.00029315,2]
[368375381,1751151040059,-22254.9170073,0.00029323,2]
[368375382,1751151040070,-150.0,0.00029331,2]
[368375383,1751151040080,-168.6245399,0.00029333,2]
[368375384,1751151040090,-5000.0,0.00029333,2]
[368375386,1751151040100,-44666.89771178,0.00029334,2]
[368375389,1751151040112,-22097.85331002,0.00029334,2]
[368375390,1751151040122,-11127.4585036,0.00029335,2]
[368375391,1751151040132,-1718.17893957,0.00029335,2]
[368375392,1751151040143,-11127.4585036,0.00029336,2]
[368375393,1751151040153,-465.0,0.00029338,2]
[368375394,1751151040163,-500.0,0.00029338,2]
[368375395,1751151040173,-500.0,0.00029338,2]
[368375396,1751151040182,-500.0,0.00029338,2]
[368375397,1751151040192,-500.0,0.00029338,2]
[368375398,1751151040204,-500.0,0.00029338,2]
[368375399,1751151040214,-500.0,0.00029338,2]
[368375400,1751151040224,-571.0,0.00029338,2]
[368375401,1751151040234,-687.0,0.00029338,2]
[368375402,1751151040244,-500.0,0.00029338,2]
[368375403,1751151040254,-500.0,0.00029338,2]
[368375404,1751151040263,-500.0,0.00029338,2]
[368375406,1751151040274,-500.0,0.00029338,2]
[368375408,1751151040284,-656.0,0.00029338,2]
[368375410,1751151040293,-33382.3755109,0.0002934,2]
[368375412,1751151040303,-5154.53681871,0.0002934,2]
[368375414,1751151040313,-1718.17893957,0.00029342,2]
[368375416,1751151040323,-11127.4585036,0.00029342,2]
[368375418,1751151040332,-708.13464497,0.00029343,2]
[368375420,1751151040342,-169.47407931,0.00029343,2]
[368375422,1751151040352,-4759.25224713,0.00029344,2]
[368375424,1751151040364,-3000.0,0.00029344,2]
[368375425,1751151040376,-1622.44927575,0.00029344,2]
[368375428,1751151040387,-8763.60942693,0.00029344,2]
[368375430,1751151040398,-59746.89857559,0.00029344,2]
[368375432,1751151040408,-15430.71707947,0.00029344,2]
[368375434,1751151040420,-1781.137005,0.00029344,2]
[368375436,1751151040431,-1363.68834929,0.00029344,2]
[368375439,1751151040443,-6784.69802647,0.00029344,2]
[368375441,1751151040455,-412.44363337,0.00029344,2]
[368375443,1751151040464,-151.46,0.00029344,2]
[368375445,1751151040474,-1718.17893957,0.00029352,2]
[368375447,1751151040483,-167.99842267,0.00029353,2]
[368375450,1751151040495,-73.13327432,0.00029353,2]
[368375452,1751151040504,-150.0,0.00029353,2]